fUST/lending_fUST_20250930
["ID","MTS","AMOUNT","RATE_DAILY","PERIOD"]
[388564445,1759243326649,-500.0,0.00024383,2]
[388564446,1759243326680,-500.0,0.00024383,2]
[388564447,1759243326713,-519.41,0.00024383,2]
[388564448,1759243326748,-500.0,0.00024383,2]
[388564449,1759243326781,-3938.37,0.00024383,2]
[388564450,1759243326820,-772.65,0.00024383,2]
[388564451,1759243326854,-500.0,0.00024383,2]
[388564452,1759243326887,-435.62932552,0.00024383,2]
[388564453,1759243326923,-614.53,0.00024383,2]
[388564454,1759243326955,-912.83,0.00024383,2]
[388564455,1759243326988,-636.66,0.00024383,2]
[388564456,1759243327021,-707.09,0.00024383,2]
[388564457,1759243327053,-500.0,0.00024383,2]
[388564458,1759243327085,-519.25,0.00024383,2]
[388564459,1759243327119,-623.93,0.00024383,2]
[388564460,1759243327152,-500.0,0.00024383,2]
[388564461,1759243327184,-571.74574227,0.00024383,2]
[388564462,1759243327218,-973.16,0.00024383,2]
[388564463,1759243327250,-440.77006862,0.00024383,2]
[388564464,1759243327283,-685.58,0.00024383,2]
[388564465,1759243327320,-3213.89,0.00024383,2]
[388564466,1759243327354,-3751.52,0.00024383,2]
[388564467,1759243327386,-617.08,0.00024383,2]
[388564468,1759243327419,-450.94836631,0.00024384,2]
[388564469,1759243327453,-360.0046132,0.00024481,2]
[388564470,1759243327487,-2000.0,0.000245,2]
[388564471,1759243327520,-6115.18,0.000246,2]
[388564472,1759243327554,-610.43418813,0.00024616,2]
[388564473,1759243327588,-145733.47582239,0.0002465,2]
[388564474,1759243327622,-507.60987574,0.0002465,2]
[388564475,1759243327653,-500.0,0.00024657,2]
[388564476,1759243327686,-500.0,0.00024657,2]
[388564477,1759243327719,-572.56201249,0.00024657,2]
[388564478,1759243327752,-519.41,0.00024657,2]
[388564479,1759243327784,-500.0,0.00024657,2]
[388564480,1759243327821,-3938.37,0.00024657,2]
[388564481,1759243327855,-772.65,0.00024657,2]
[388564482,1759243327888,-500.0,0.00024657,2]
[388564483,1759243327921,-614.53,0.00024657,2]
[388564484,1759243327952,-912.83,0.00024657,2]
[388564485,1759243327985,-707.09,0.00024657,2]
[388564486,1759243328017,-500.0,0.00024657,2]
[388564487,1759243328051,-636.66,0.00024657,2]
[388564488,1759243328084,-519.25,0.00024657,2]
[388564489,1759243328119,-623.93,0.00024657,2]
[388564490,1759243328151,-500.0,0.00024657,2]
[388564491,1759243328184,-973.16,0.00024657,2]
[388564492,1759243328329,-685.58,0.00024657,2]
[388564493,1759243328364,-3213.89,0.00024657,2]
[388564494,1759243328398,-3751.52,0.00024657,2]
[388564495,1759243328430,-617.08,0.00024657,2]
[388564496,1759243328463,-150.0,0.00024658,2]
[388564497,1759243328496,-380.0,0.00024658,2]
[388564498,1759243328529,-151.0,0.00024658,2]
[388564499,1759243328562,-250.0,0.000247,2]
[388564500,1759243328595,-250.8,0.000247,2]
[388564501,1759243328627,-860.0,0.00024732,2]
[388564502,1759243328659,-250.0,0.0002476,2]
[388564503,1759243328691,-16621.82247468,0.00024774,2]
[388564504,1759243328723,-1738.81005682,0.000248,4]
[388564505,1759243328757,-117503.85742749,0.000248,2]
[388564506,1759243329016,-500.0,0.00019178,2]
[388564507,1759243329049,-500.0,0.00019452,2]
[388564508,1759243329084,-500.0,0.00019726,2]
[388564509,1759243329118,-500.0,0.0002,2]
[388564510,1759243329151,-500.0,0.00020273,2]
[388564511,1759243329184,-500.0,0.00020547,2]
[388564512,1759243329218,-500.0,0.00020821,2]
[388564513,1759243329253,-500.0,0.00021095,2]
[388564514,1759243329286,-500.0,0.00021369,2]
[388564515,1759243329321,-365.88133341,0.00021643,2]
[388564516,1759243329355,-501.7634535,0.00022327,2]
[388564517,1759243329391,-1750.13,0.00024346,10]
[388564518,1759243329426,-227970.90292951,0.000248,2]
[388564519,1759243329461,-3500.0,0.00024819,2]
[388564520,1759243329497,-160.0,0.00024855,6]
[388564521,1759243329531,-480.06939402,0.00024886,2]
[388564522,1759243329567,-480.06939402,0.00024886,2]
[388564523,1759243329600,-480.06939402,0.00024886,2]
[388564524,1759243329635,-154.65510662,0.00024886,2]
[388564525,1759243329670,-388136.5279334,0.00024888,2]
[388564526,1759243329704,-371519.9310615,0.000249,2]
[388564527,1759243333420,-538.54500367,0.00019178,2]
[388564528,1759243333452,-43045.00111921,0.00023287,2]
[388564529,1759243333483,-501552.7341825,0.000249,2]
[388564530,1759243333516,-5000.0,0.00024904,2]
[388564531,1759243333562,-564.48359252,0.00024931,2]
[388564532,1759243333597,-500.0,0.00024931,2]
[388564533,1759243333631,-519.41,0.00024931,2]
[388564534,1759243333665,-267.42787764,0.00024931,2]
[388564535,1759243333699,-3938.37,0.00024931,2]
[388564536,1759243333732,-772.65,0.00024931,2]
[388564537,1759243333764,-614.53,0.00024931,2]
[388564538,1759243333798,-912.83,0.00024931,2]
[388564539,1759243333830,-707.09,0.00024931,2]
[388564540,1759243333861,-500.0,0.00024931,2]
[388564541,1759243333891,-636.66,0.00024931,2]
[388564542,1759243333922,-519.25,0.00024931,2]
[388564543,1759243333952,-623.93,0.00024931,2]
[388564544,1759243333983,-500.0,0.00024931,2]
[388564545,1759243334014,-973.16,0.00024931,2]
[388564546,1759243334050,-685.58,0.00024931,2]
[388564547,1759243334083,-3213.89,0.00024931,2]
[388564548,1759243334114,-3751.52,0.00024931,2]
[388564549,1759243334145,-617.08,0.00024931,2]
[388564550,1759243334175,-230.9937208,0.00024932,2]
[388564551,1759243334206,-2643.84746611,0.00025,2]
[388564552,1759243334237,-100000.0,0.00025,3]
[388564553,1759243334267,-100000.0,0.00025,3]
[388564554,1759243334297,-17703.84594226,0.00025,2]
[388564555,1759243334329,-44000.0,0.00025,2]
[388564556,1759243334359,-209.46690096,0.00025,2]
[388564557,1759243334390,-10364.0,0.00025,2]
[388564558,1759243334423,-361.73718782,0.00025,2]
[388564559,1759243334454,-150.0,0.00025,2]
[388564560,1759243334484,-600.0,0.00025,2]
[388564561,1759243334514,-1072.88775906,0.00025,2]
[388564562,1759243334544,-841.1991212,0.00025,5]
[388564563,1759243334574,-158.0,0.00025,2]
[388564564,1759243334604,-160.0,0.00025,3]
[388564565,1759243334636,-326.7559,0.00025,2]
[388564566,1759243334666,-160.0,0.00025,3]
[388564567,1759243334698,-480.06939402,0.00025036,4]
[388564568,1759243334728,-480.06939402,0.00025036,4]
[388564569,1759243334759,-480.06939402,0.00025186,6]
[388564570,1759243334792,-480.06939402,0.00025186,6]
[388564571,1759243334825,-480.06939402,0.00025186,6]
[388564572,1759243334857,-360.85533717,0.00025205,2]
[388564573,1759243334889,-519.41,0.00025205,2]
[388564574,1759243334925,-3938.37,0.00025205,2]
[388564575,1759243334959,-772.65,0.00025205,2]
[388564576,1759243334991,-614.53,0.00025205,2]
[388564577,1759243335023,-912.83,0.00025205,2]
[388564578,1759243335058,-707.09,0.00025205,2]
[388564579,1759243335092,-350.62661484,0.00025205,2]
[388564580,1759243335125,-636.66,0.00025205,2]
[388564581,1759243335156,-519.25,0.00025205,2]
[388564582,1759243335186,-623.93,0.00025205,2]
[388564583,1759243335218,-507.59870161,0.00025205,2]
[388564584,1759243335338,-973.16,0.00025205,2]
[388564585,1759243335396,-685.58,0.00025205,2]
[388564586,1759243335432,-3213.89,0.00025205,2]
[388564587,1759243335466,-3751.52,0.00025205,2]
[388564588,1759243335500,-617.08,0.00025205,2]
[388564589,1759243335532,-979.0,0.0002522,2]
[388564591,1759243335567,-630.0,0.0002522,2]
[388564592,1759243335601,-2156.0,0.0002522,2]
[388564593,1759243335635,-150.0,0.0002524,2]
[388564594,1759243335668,-150.0,0.0002524,2]
[388564595,1759243335703,-150.0,0.0002524,2]
[388564596,1759243335736,-960.0,0.0002528,2]
[388564597,1759243335768,-5500.0,0.00025452,2]
[388564598,1759243335801,-900.0,0.00025469,3]
[388564599,1759243335836,-519.50953885,0.00025479,2]
[388564600,1759243335869,-3938.43958991,0.00025479,2]
[388564601,1759243335903,-772.69718871,0.00025479,2]
[388564602,1759243335936,-614.56300234,0.00025479,2]
[388564603,1759243335970,-912.97,0.00025479,2]
[388564604,1759243336004,-707.13114027,0.00025479,2]
[388564605,1759243336039,-636.71670132,0.00025479,2]
[388564606,1759243336080,-519.29360215,0.00025479,2]
[388564607,1759243336112,-624.00580314,0.00025479,2]
[388564608,1759243336147,-973.28441603,0.00025479,2]
[388564609,1759243336181,-685.80684489,0.00025479,2]
[388564610,1759243336216,-3213.91403276,0.00025479,2]
[388564611,1759243336248,-3751.61075119,0.00025479,2]
[388564612,1759243336280,-617.10954766,0.00025479,2]
[388564613,1759243336313,-1000.0,0.000255,2]
[388564614,1759243336345,-2000.0,0.000255,2]
[388564615,1759243336379,-24174.66223276,0.00025764,4]
[388564616,1759243336411,-24496.47189891,0.000258,2]
[388564617,1759243336443,-160.0,0.000258,3]
[388564618,1759243336477,-160.0,0.000258,3]
[388564619,1759243336510,-233.92491258,0.000258,3]
[388564620,1759243336542,-1060.0,0.00025828,2]
[388564621,1759243336576,-523.62994431,0.00026,2]
[388564622,1759243336609,-14313.40657365,0.00026,2]
[388564623,1759243336642,-4000.0,0.00026,2]
[388564624,1759243336673,-6115.18,0.00026,2]
[388564625,1759243336705,-811.78194968,0.00026,2]
[388564626,1759243336738,-192.32559287,0.0002616,2]
[388564627,1759243336770,-1160.0,0.00026375,2]
[388564628,1759243336804,-5000.0,0.00026398,2]
[388564629,1759243336840,-700.0,0.000265,3]
[388564630,1759243336874,-1088.0,0.000265,2]
[388564631,1759243336905,-160.0,0.000265,3]
[388564632,1759243336936,-233.92491258,0.000265,3]
[388564633,1759243336967,-410.0,0.00026588,2]
[388564634,1759243336998,-410.0,0.00026588,2]
[388564635,1759243337030,-4000.0,0.00026667,4]
[388564636,1759243337063,-239.17,0.00026713,2]
[388564637,1759243337095,-1500.0,0.00026849,2]
[388564638,1759243337127,-1260.0,0.00026923,2]
[388564639,1759243337160,-504.50916954,0.00027,5]
[388564640,1759243337192,-1988.70725643,0.00027,3]
[388564641,1759243340510,-1458.44,0.0002489,10]
[388564642,1759243340542,-500.0,0.00024973,2]
[388564643,1759243340575,-500.0,0.00024973,2]
[388564644,1759243340608,-500.0,0.00024973,2]
[388564645,1759243340640,-500.0,0.00024973,2]
[388564646,1759243340721,-326.7559,0.00025,2]
[388564647,1759243340800,-1000.0,0.00025521,2]
[388564648,1759243340876,-415.73398002,0.00025521,2]
[388564649,1759243340953,-1000.0,0.00025521,2]
[388564650,1759243341032,-1000.0,0.00025521,2]
[388564651,1759243341119,-1500.0,0.00026068,2]
[388564652,1759243341201,-1253.17260582,0.00026068,2]
[388564653,1759243341283,-1500.0,0.00026068,2]
[388564654,1759243341366,-2000.0,0.00026616,2]
[388564655,1759243341449,-2000.0,0.00026616,2]
[388564656,1759243341534,-43395.87655787,0.00027,3]
[388564657,1759243341620,-2500.0,0.00027164,2]
[388564658,1759243341701,-2500.0,0.00027164,2]
[388564659,1759243341784,-6115.18,0.000273,2]
[388564660,1759243341867,-150.0,0.00027397,2]
[388564661,1759243341949,-332.34239757,0.00027397,2]
[388564662,1759243342030,-500.0,0.00027397,5]
[388564663,1759243342112,-182.07,0.000274,2]
[388564664,1759243342192,-182.07,0.000274,2]
[388564665,1759243342269,-182.07,0.000274,2]
[388564666,1759243342348,-1360.0,0.00027471,2]
[388564667,1759243342427,-163.75888643,0.0002749,5]
[388564668,1759243342504,-800.0,0.000275,4]
[388564669,1759243342586,-11310.1022033,0.000275,2]
[388564670,1759243342668,-3000.0,0.00027712,5]
[388564671,1759243342750,-1259.30794109,0.00027712,5]
[388564672,1759243342835,-329.83510753,0.00027923,2]
[388564673,1759243342914,-329.83510753,0.00027923,2]
[388564674,1759243342988,-329.83510753,0.00027923,2]
[388564675,1759243343063,-329.83510753,0.00027923,2]
[388564676,1759243343138,-795.54843741,0.00027945,5]
[388564677,1759243343216,-1604.69,0.00027999,2]
[388564678,1759243343293,-529058.29625,0.00028,2]
[388564679,1759243343378,-197.237,0.00028,5]
[388564680,1759243343461,-1056.62,0.00028,2]
[388564681,1759243343547,-1460.0,0.00028019,2]
[388564682,1759243343638,-329.83510753,0.00028091,4]
[388564683,1759243343718,-329.83510753,0.00028091,4]
[388564684,1759243343803,-1056.62,0.0002814,2]
[388564685,1759243344007,-630.0,0.0002822,2]
[388564686,1759243344091,-2156.0,0.0002822,2]
[388564687,1759243344174,-150.0,0.0002824,2]
[388564688,1759243344258,-329.83510753,0.00028259,6]
[388564689,1759243344341,-329.83510753,0.00028259,6]
[388564690,1759243344427,-329.83510753,0.00028259,6]
[388564691,1759243344512,-3500.0,0.0002826,5]
[388564692,1759243344599,-1056.62,0.0002828,2]
[388564693,1759243344684,-1056.62,0.0002842,2]
[388564694,1759243344768,-184.93443725,0.00028434,6]
[388564695,1759243344850,-1056.62,0.0002856,2]
[388564696,1759243344936,-1560.0,0.00028567,2]
[388564697,1759243345018,-1056.62,0.000287,2]
[388564698,1759243345098,-1000.0,0.00028767,2]
[388564699,1759243345179,-500.0,0.00028767,2]
[388564700,1759243345258,-6115.18,0.000288,2]
[388564701,1759243345337,-4000.0,0.00028808,5]
[388564702,1759243345416,-4512.01495729,0.0002899,2]
[388564703,1759243345497,-879.55145805,0.00029,2]
[388564704,1759243345582,-5000.0,0.00029,2]
[388564705,1759243345664,-1032.31839262,0.00029,5]
[388564706,1759243345744,-5592.17543745,0.00029,7]
[388564707,1759243345827,-1520.57865851,0.0002911,2]
[388564708,1759243345915,-1660.0,0.00029115,2]
[388564709,1759243345993,-4500.0,0.00029356,5]
[388564710,1759243346065,-2012.32159742,0.0002939,5]
[388564711,1759243346137,-410.0,0.00029588,2]
[388564712,1759243346210,-410.0,0.00029588,2]
[388564713,1759243346283,-1760.0,0.00029663,2]
[388564714,1759243346358,-5000.0,0.00029904,5]
[388564715,1759243346435,-2078.40645725,0.0003,2]
[388564716,1759243346513,-165.46,0.0003,5]
[388564717,1759243346595,-524.26297288,0.0003,2]
[388564718,1759243346672,-1185.0,0.0003,5]
[388564719,1759243346754,-10000.0,0.0003,2]
[388564720,1759243346842,-8272.42540682,0.0003,2]
[388564721,1759243346923,-6000.0,0.0003,2]
[388564722,1759243346999,-3000.0,0.0003,2]
[388564723,1759243347073,-2727.88325307,0.0003,2]
[388564724,1759243347148,-259.873,0.0003,2]
[388564725,1759243347224,-259.873,0.0003,2]
[388564726,1759243347293,-251.789,0.0003,2]
[388564727,1759243347367,-251.789,0.0003,2]
[388564728,1759243347436,-157.789,0.0003,5]
[388564729,1759243347509,-155.325,0.0003,5]
[388564730,1759243347587,-2923.0,0.00030032,2]
[388564731,1759243347659,-284.81720082,0.0003013,2]
[388564732,1759243347734,-962.3031718,0.000302,2]
[388564733,1759243347810,-1860.0,0.00030211,2]
[388564734,1759243347882,-184.63386605,0.0003034,2]
[388564735,1759243347956,-5500.0,0.00030452,5]
[388564736,1759243348027,-1960.0,0.00030759,2]
[388564737,1759243348097,-303.07949942,0.0003099,2]
[388564738,1759243348160,-101173.7449678,0.00031,2]
[388564739,1759243348225,-6115.18,0.00031,2]
[388564740,1759243348295,-3181.90060366,0.00031,5]
[388564741,1759243348364,-30000.0,0.0003112,2]
[388564742,1759243348440,-630.0,0.0003122,2]
[388564743,1759243348519,-2156.0,0.0003122,2]
[388564744,1759243348596,-2060.0,0.00031307,2]
[388564745,1759243348671,-2160.0,0.00031855,2]
[388564746,1759243348752,-22535.23903431,0.000319,2]
[388564747,1759243348834,-700.0,0.00032,2]
[388564748,1759243348913,-1500.0,0.00032,2]
[388564749,1759243348991,-1000.0,0.0003216,5]
[388564750,1759243349065,-500.0,0.0003236,5]
[388564751,1759243349146,-2260.0,0.00032403,2]
[388564752,1759243349225,-410.0,0.00032588,2]
[388564753,1759243349297,-410.0,0.00032588,2]
[388564754,1759243349373,-1500.0,0.00032646,2]
[388564755,1759243349449,-340.37597042,0.00032876,2]
[388564756,1759243349527,-435.50223298,0.00032876,2]
[388564757,1759243349610,-500.0,0.00032876,2]
[388564758,1759243349688,-500.0,0.00032876,2]
[388564759,1759243349768,-500.0,0.00032876,2]
[388564760,1759243349850,-500.0,0.00032876,2]
[388564761,1759243349924,-500.0,0.00032876,2]
[388564762,1759243349996,-500.0,0.00032876,2]
[388564763,1759243350063,-500.0,0.00032876,2]
[388564764,1759243350132,-500.0,0.00032876,2]
[388564765,1759243350201,-500.0,0.00032876,2]
[388564766,1759243350278,-500.0,0.00032876,2]
[388564767,1759243350365,-500.0,0.00032876,2]
[388564768,1759243350445,-650.18850497,0.00032876,2]
[388564769,1759243350519,-500.0,0.00032876,2]
[388564770,1759243350597,-500.0,0.00032876,2]
[388564771,1759243350671,-478.17499523,0.00032876,2]
[388564772,1759243350754,-457.17991112,0.00032876,2]
[388564773,1759243350836,-251.13533784,0.00032876,2]
[388564774,1759243350917,-441.86592743,0.00032876,2]
[388564775,1759243350992,-256.93641543,0.00032876,2]
[388564776,1759243351065,-500.0,0.00032876,2]
[388564777,1759243351143,-200.0,0.00032876,2]
[388564778,1759243351222,-371.85114291,0.00032876,2]
[388564779,1759243351301,-500.0,0.00032876,2]
[388564780,1759243351389,-484.93813048,0.00032876,2]
[388564781,1759243351478,-500.0,0.00032876,2]
[388564782,1759243351566,-606.66388023,0.00032876,2]
[388564783,1759243351652,-160.59471866,0.00032877,2]
[388564784,1759243351791,1215.37,0.0003099,10]
[388564785,1759243351894,477.67,0.00019178,2]
[388564786,1759243352111,189.44378083,0.00025,3]
[388564787,1759243352225,189.44378083,0.00028,10]
[388564788,1759243353678,189.44378083,0.000258,3]
[388564789,1759243355539,189.44378083,0.00028,10]
[388564790,1759243356907,189.44378083,0.00027,7]
[388564791,1759243358255,189.44378083,0.000265,3]
[388564792,1759243358715,189.44378083,0.00028,10]
[388564793,1759243359014,250.0,0.00026849,2]
[388564794,1759243359182,189.44378083,0.00027,7]
[388564795,1759243368590,-182.31684209,0.000332,117]
[388564796,1759243368678,-182.31684207,0.000332,117]
[388564797,1759243368768,-5000.0,0.00034,5]
[388564798,1759243368859,-165.05974107,0.00034849,120]
[388564799,1759243368951,-233.92491258,0.00035,7]
[388564800,1759243369042,-271.148,0.00035,5]
[388564801,1759243369134,-271.148,0.00035,5]
[388564802,1759243369226,-233.92491258,0.000361,7]
[388564803,1759243369321,-182.31684207,0.00036959,120]
[388564804,1759243369417,-23924.68955001,0.0003785,30]
[388564805,1759243369513,-287.82368704,0.00038045,5]
[388564806,1759243369610,-999.0,0.00038356,120]
[388564807,1759243369707,-999.0,0.00039178,120]
[388564808,1759243369804,-10209.0,0.0004,5]
[388564809,1759243369900,-982.52961847,0.0004,120]
[388564810,1759243369993,-320.6021047,0.0004005,16]
[388564837,1759243581339,200.0,0.00033403,120]
[388564838,1759243591206,-290.22086844,0.00019178,2]
[388564842,1759243716251,194.0,0.00018082,3]
[388564876,1759243832237,-300.0,0.00019177,2]
[388564877,1759243832248,-209.77913156,0.00019178,2]
[388564878,1759243832257,-484.79404011,0.00019178,2]
[388564881,1759243832273,-228.49158723,0.00019178,2]
[388564883,1759243832287,-500.0,0.00019178,2]
[388564884,1759243832298,-247.9483104,0.00019178,2]
[388564885,1759243832310,-252.0516896,0.00019178,2]
[388564886,1759243832320,-500.0,0.00019178,2]
[388564887,1759243832330,-262.72631749,0.00019178,2]
[388564888,1759243832342,-237.27368251,0.00019178,2]
[388564889,1759243832351,-372.94285527,0.00019178,2]
[388564890,1759243832363,-127.05714473,0.00019178,2]
[388564891,1759243832373,-500.0,0.00019178,2]
[388564893,1759243832382,-77.19285542,0.00019178,2]
[388564894,1759243832394,-422.80714458,0.00019178,2]
[388564895,1759243832403,-478.28268451,0.00019178,2]
[388564896,1759243832415,-21.71731549,0.00019178,2]
[388564898,1759243832425,-500.0,0.00019178,2]
[388564900,1759243832434,-500.0,0.00019178,2]
[388564901,1759243832443,-301.26782929,0.00019178,2]
[388564905,1759243838227,-198.73217071,0.00019178,2]
[388564906,1759243838237,-500.0,0.00019452,2]
[388564907,1759243838247,-500.0,0.00019452,2]
[388564908,1759243838257,-500.0,0.00019452,2]
[388564909,1759243838267,-500.0,0.00019452,2]
[388564910,1759243838276,-500.0,0.00019452,2]
[388564912,1759243838286,-500.0,0.00019452,2]
[388564914,1759243838295,-500.0,0.00019452,2]
[388564916,1759243838304,-605.44524074,0.00019452,2]
[388564918,1759243838314,-500.0,0.00019452,2]
[388564920,1759243838323,-500.0,0.00019726,2]
[388564922,1759243838333,-500.0,0.00019726,2]
[388564924,1759243838343,-500.0,0.00019726,2]
[388564926,1759243838351,-500.0,0.00019726,2]
[388564928,1759243838361,-500.0,0.00019726,2]
[388564930,1759243838370,-500.0,0.00019726,2]
[388564932,1759243838379,-500.0,0.00019726,2]
[388564935,1759243838389,-500.0,0.00019726,2]
[388564938,1759243838398,-500.0,0.0002,2]
[388564941,1759243838407,-500.0,0.0002,2]
[388564943,1759243838417,-500.0,0.0002,2]
[388564945,1759243838426,-500.0,0.0002,2]
[388564947,1759243838434,-500.0,0.0002,2]
[388564949,1759243838444,-1500.24546085,0.0002,2]
[388564951,1759243838453,-500.0,0.0002,2]
[388564953,1759243838463,-500.0,0.0002,2]
[388564955,1759243838473,-500.0,0.0002,2]
[388564957,1759243838483,-500.0,0.00020273,2]
[388564959,1759243838492,-500.0,0.00020273,2]
[388564961,1759243838502,-500.0,0.00020273,2]
[388564963,1759243838516,-500.0,0.00020273,2]
[388564965,1759243838525,-500.0,0.00020273,2]
[388564967,1759243838535,-500.0,0.00020273,2]
[388564969,1759243838544,-500.0,0.00020273,2]
[388564971,1759243838553,-500.0,0.00020273,2]
[388564973,1759243838563,-500.0,0.00020547,2]
[388564975,1759243838572,-500.0,0.00020547,2]
[388564977,1759243838581,-500.0,0.00020547,2]
[388564979,1759243838591,-500.0,0.00020547,2]
[388564981,1759243838602,-500.0,0.00020547,2]
[388564983,1759243838612,-500.0,0.00020547,2]
[388564985,1759243838622,-500.0,0.00020547,2]
[388564987,1759243838632,-500.0,0.00020547,2]
[388564989,1759243838641,-500.0,0.00020547,2]
[388564992,1759243838655,-244.33351889,0.00020573,2]
[388564993,1759243838664,-2923.0,0.00020588,2]
[388564996,1759243838674,-979.0,0.00020588,2]
[388564998,1759243838685,-410.0,0.00020588,2]
[388565000,1759243838694,-2156.0,0.00020588,2]
[388565002,1759243838703,-630.0,0.00020588,2]
[388565004,1759243838713,-350.0,0.0002064,13]
[388565006,1759243838724,-500.0,0.00020821,2]
[388565008,1759243838733,-500.0,0.00020821,2]
[388565010,1759243838743,-500.0,0.00020821,2]
[388565012,1759243838752,-500.0,0.00020821,2]
[388565014,1759243838762,-500.0,0.00020821,2]
[388565015,1759243838771,-500.0,0.00020821,2]
[388565018,1759243838780,-440.77006862,0.00020821,2]
[388565019,1759243838790,-388.38918168,0.00020821,2]
[388565022,1759243838803,-111.61081832,0.00020821,2]
[388565024,1759243838813,-500.0,0.00020821,2]
[388565026,1759243838822,-167.41366945,0.00021048,2]
[388565028,1759243838831,-500.0,0.00021095,2]
[388565030,1759243838841,-187.21300234,0.00021095,2]
[388565032,1759243838850,-500.0,0.00021095,2]
[388565034,1759243838859,-613.70684489,0.00021095,2]
[388565036,1759243838870,-500.0,0.00021095,2]
[388565038,1759243838879,-500.0,0.00021095,2]
[388565040,1759243838889,-566.99055892,0.00021095,2]
[388565042,1759243838898,-500.0,0.00021095,2]
[388565044,1759243838907,-500.0,0.00021369,2]
[388565046,1759243838917,-242.58114027,0.00021369,2]
[388565048,1759243838926,-500.0,0.00021369,2]
[388565050,1759243838935,-500.0,0.00021369,2]
[388565052,1759243838945,-239.49820303,0.00021369,2]
[388565054,1759243838957,-260.50179697,0.00021369,2]
[388565056,1759243838966,-365.92441603,0.00021643,2]
[388565058,1759243838977,-500.0,0.00021643,2]
[388565060,1759243838986,-500.0,0.00021643,2]
[388565062,1759243838995,-500.0,0.00021643,2]
[388565064,1759243839005,-240.45,0.00021903,2]
[388565066,1759243839014,-175.95105227,0.00021917,2]
[388565068,1759243839030,-324.04894773,0.00021917,2]
[388565070,1759243839039,-615.44580314,0.00021917,2]
[388565072,1759243839049,-150.30524913,0.00021917,2]
[388565189,1759243840161,-349.69475087,0.00021917,2]
[388565191,1759243840171,-165.0,0.00021918,6]
[388565193,1759243840180,-209.90444476,0.00022055,7]
[388565195,1759243840191,-174.81808087,0.00022055,7]
[388565197,1759243840200,-193.21791913,0.00022191,2]
[388565206,1759243840273,-306.78208087,0.00022191,2]
[388565208,1759243840281,-500.0,0.00022191,2]
[388565210,1759243840291,-160.0,0.00022415,2]
[388565212,1759243840300,-450.94836631,0.00022465,2]
[388565214,1759243840309,-500.0,0.00022465,2]
[388565216,1759243840319,-500.0,0.00022739,2]
[388565218,1759243840327,-500.0,0.00023013,2]
[388565220,1759243840336,-283.07219588,0.00023286,2]
[388565222,1759243840346,-500.0,0.00023286,2]
[388565224,1759243840355,-392.16181478,0.00023286,2]
[388565226,1759243840364,-500.0,0.00023286,2]
[388565228,1759243840373,-500.0,0.00023286,2]
[388565230,1759243840382,-615.09693293,0.00023286,2]
[388565232,1759243840391,-500.0,0.00023286,2]
[388565234,1759243840400,-500.0,0.00023286,2]
[388565236,1759243840409,-500.0,0.00023287,2]
[388565239,1759243840419,-397.84507346,0.00023561,2]
[388565241,1759243840432,-102.15492654,0.00023561,2]
[388565243,1759243840441,-979.0,0.00023588,2]
[388565245,1759243840450,-2156.0,0.00023588,2]
[388565247,1759243840459,-630.0,0.00023588,2]
[388565249,1759243840468,-500.0,0.00023835,2]